fUST/lending_fUST_20241008
["ID","MTS","AMOUNT","RATE_DAILY","PERIOD"]
[340025429,1728334315222,-610.21,0.00041095,120]
[340025430,1728334315232,-554.6,0.00041095,120]
[340025431,1728334315241,-500.0,0.00041095,120]
[340025432,1728334315251,-500.0,0.00041095,120]
[340025433,1728334315260,-251.37425306,0.00041095,120]
[340025434,1728334315270,-500.0,0.00041095,120]
[340025435,1728334315280,-448.18120632,0.00041095,120]
[340025436,1728334315289,-500.0,0.00041095,120]
[340025437,1728334315301,-500.0,0.00041095,120]
[340025438,1728334315311,-500.0,0.00041095,30]
[340025439,1728334315321,-760.72,0.00041095,120]
[340025440,1728334315331,-500.0,0.00041095,120]
[340025441,1728334315341,-500.0,0.00041095,120]
[340025442,1728334315351,-505.93,0.00041095,120]
[340025443,1728334315362,-500.0,0.00041095,120]
[340025444,1728334315374,-579.67,0.00041095,120]
[340025445,1728334315384,-500.0,0.00041095,120]
[340025446,1728334315394,-500.0,0.00041095,120]
[340025447,1728334315404,-500.0,0.00041095,120]
[340025448,1728334315416,-909.57,0.00041095,120]
[340025449,1728334315429,-699.58,0.00041095,120]
[340025450,1728334315440,-778.22,0.00041095,120]
[340025451,1728334315449,-1176.62,0.00041095,120]
[340025452,1728334315459,-538.25,0.00041095,120]
[340025453,1728334315470,-500.0,0.00041095,120]
[340025454,1728334315481,-628.45,0.00041095,120]
[340025455,1728334315491,-500.0,0.00041095,120]
[340025456,1728334315500,-198.24686118,0.00041095,30]
[340025457,1728334315510,-799.02,0.00041095,120]
[340025458,1728334315519,-1344.11,0.00041095,21]
[340025459,1728334315528,-500.0,0.00041095,120]
[340025460,1728334315538,-500.0,0.00041095,120]
[340025461,1728334315547,-1176.49,0.00041095,120]
[340025462,1728334315557,-538.89,0.00041095,120]
[340025463,1728334315566,-500.0,0.00041095,120]
[340025464,1728334315577,-500.0,0.00041095,120]
[340025465,1728334315586,-500.0,0.00041095,120]
[340025466,1728334315596,-500.0,0.00041095,120]
[340025467,1728334315606,-2556.51,0.00041095,120]
[340025468,1728334315615,-500.0,0.00041095,120]
[340025469,1728334315625,-193.02805761,0.00041095,120]
[340025470,1728334315634,-500.0,0.00041095,120]
[340025471,1728334315644,-686.35,0.00041095,120]
[340025472,1728334315653,-500.0,0.00041095,120]
[340025473,1728334315663,-1127.5,0.00041095,120]
[340025474,1728334315673,-336.73,0.00041095,7]
[340025475,1728334315682,-618.33,0.00041095,120]
[340025476,1728334315691,-557.71,0.00041095,120]
[340025477,1728334315702,-554.61,0.00041095,120]
[340025478,1728334315712,-724.85,0.00041095,120]
[340025479,1728334315723,-500.0,0.00041095,120]
[340025480,1728334315732,-500.0,0.00041095,120]
[340025481,1728334315742,-500.0,0.00041095,120]
[340025482,1728334315752,-500.0,0.00041095,120]
[340025483,1728334315771,-500.0,0.00041095,120]
[340025484,1728334315783,-500.0,0.00041095,120]
[340025485,1728334315793,-500.0,0.00041095,120]
[340025486,1728334315803,-1000.0,0.00041095,120]
[340025487,1728334315812,-575.14,0.00041095,120]
[340025488,1728334315823,-500.0,0.00041095,120]
[340025489,1728334315833,-500.0,0.00041095,120]
[340025490,1728334315842,-500.0,0.00041095,120]
[340025491,1728334315852,-501.94,0.00041095,120]
[340025492,1728334315862,-500.0,0.00041095,120]
[340025493,1728334315872,-557.73,0.00041095,120]
[340025494,1728334315882,-819.33,0.00041095,120]
[340025495,1728334315892,-521.05,0.00041095,120]
[340025496,1728334315902,-1265.51,0.00041095,120]
[340025497,1728334315912,-518.1,0.00041095,120]
[340025498,1728334315922,-583.01,0.00041095,120]
[340025499,1728334315931,-500.0,0.00041095,120]
[340025500,1728334315941,-500.0,0.00041095,120]
[340025501,1728334315950,-500.0,0.00041095,120]
[340025502,1728334315960,-500.0,0.00041095,120]
[340025503,1728334315971,-500.0,0.00041095,120]
[340025504,1728334315980,-1208.8,0.00041095,120]
[340025505,1728334315990,-500.0,0.00041095,120]
[340025506,1728334316000,-500.0,0.00041095,120]
[340025507,1728334316009,-500.0,0.00041095,120]
[340025508,1728334316019,-618.94,0.00041095,120]
[340025509,1728334316029,-500.0,0.00041095,120]
[340025510,1728334316039,-500.0,0.00041095,120]
[340025511,1728334316049,-500.0,0.00041095,120]
[340025512,1728334316059,-718.42,0.00041095,120]
[340025513,1728334316069,-705.43,0.00041095,120]
[340025514,1728334316079,-500.0,0.00041095,120]
[340025515,1728334316090,-512.16,0.00041095,7]
[340025516,1728334316103,-500.0,0.00041095,120]
[340025517,1728334316114,-1000.59,0.00041095,120]
[340025518,1728334316129,-500.0,0.00041095,120]
[340025519,1728334316141,-2499.96,0.00041095,120]
[340025520,1728334316152,-500.0,0.00041095,120]
[340025521,1728334316164,-294.64096434,0.00041095,120]
[340025522,1728334316175,-550.18,0.00041095,120]
[340025523,1728334316187,-615.51,0.00041095,120]
[340025524,1728334316201,-500.0,0.00041095,120]
[340025525,1728334316214,-500.0,0.00041095,120]
[340025526,1728334316226,-824.07,0.00041095,120]
[340025527,1728334316238,-1097.32,0.00041095,120]
[340025528,1728334316251,-500.0,0.00041095,120]
[340025529,1728334316262,-500.0,0.00041095,120]
[340025530,1728334316274,-2000.0,0.00041095,120]
[340025531,1728334316284,-2000.0,0.00041095,120]
[340025532,1728334316294,-500.0,0.00041095,120]
[340025533,1728334316304,-2000.0,0.00041095,120]
[340025534,1728334316314,-2000.0,0.00041095,120]
[340025535,1728334316324,-2000.0,0.00041095,120]
[340025536,1728334316335,-2000.0,0.00041095,120]
[340025537,1728334316345,-2000.0,0.00041095,120]
[340025538,1728334316357,-2000.0,0.00041095,120]
[340025539,1728334316367,-2000.0,0.00041095,120]
[340025540,1728334316379,-2000.0,0.00041095,120]
[340025541,1728334316389,-2000.0,0.00041095,120]
[340025542,1728334316400,-516.16,0.00041095,120]
[340025543,1728334316410,-2000.0,0.00041095,120]
[340025544,1728334316419,-2000.0,0.00041095,120]
[340025545,1728334316430,-2000.0,0.00041095,120]
[340025546,1728334316440,-2000.0,0.00041095,120]
[340025547,1728334316451,-2000.0,0.00041095,120]
[340025548,1728334316460,-2000.0,0.00041095,120]
[340025549,1728334316471,-2000.0,0.00041095,120]
[340025550,1728334316481,-2000.0,0.00041095,120]
[340025551,1728334316491,-2000.0,0.00041095,120]
[340025552,1728334316502,-500.0,0.00041095,120]
[340025553,1728334316512,-1334.33780334,0.00041095,120]
[340025554,1728334316522,-500.0,0.00041095,120]
[340025555,1728334316532,-514.48,0.00041095,120]
[340025556,1728334316543,-500.0,0.00041095,120]
[340025557,1728334316553,-500.0,0.00041095,120]
[340025558,1728334316563,-584.54,0.00041095,120]
[340025559,1728334316574,-500.0,0.00041095,120]
[340025560,1728334316584,-502.32,0.00041095,120]
[340025561,1728334316595,-500.0,0.00041095,120]
[340025562,1728334316605,-500.0,0.00041095,120]
[340025563,1728334316615,-500.0,0.00041095,120]
[340025564,1728334316625,-200.0,0.00041095,120]
[340025565,1728334316635,-659.67,0.00041095,30]
[340025566,1728334316645,-843.64,0.00041095,120]
[340025567,1728334316655,-500.0,0.00041095,120]
[340025568,1728334316665,-826.06,0.00041095,120]
[340025569,1728334316676,-844.53,0.00041095,120]
[340025570,1728334316687,-500.0,0.00041095,120]
[340025571,1728334316697,-500.0,0.00041095,120]
[340025572,1728334316708,-500.0,0.00041095,120]
[340025573,1728334316719,-500.0,0.00041095,120]
[340025574,1728334316730,-863.29,0.00041095,120]
[340025575,1728334316741,-714.69,0.00041095,120]
[340025576,1728334316754,-500.0,0.00041095,120]
[340025577,1728334316766,-500.0,0.00041095,120]
[340025578,1728334316777,-500.0,0.00041095,120]
[340025579,1728334316793,-500.0,0.00041095,120]
[340025580,1728334316805,-537.33,0.00041095,120]
[340025581,1728334316816,-500.0,0.00041095,120]
[340025582,1728334316829,-611.81,0.00041095,120]
[340025583,1728334316842,-500.0,0.00041095,120]
[340025584,1728334316855,-500.0,0.00041095,120]
[340025585,1728334316869,-679.62,0.00041095,120]
[340025586,1728334316882,-500.0,0.00041095,120]
[340025587,1728334316895,-233.15876934,0.00041095,120]
[340025588,1728334316908,-769.77,0.00041095,120]
[340025589,1728334316919,-500.0,0.00041095,120]
[340025590,1728334316930,-944.22,0.00041095,120]
[340025591,1728334316943,-500.0,0.00041095,120]
[340025592,1728334316956,-514.42,0.00041095,120]
[340025593,1728334316969,-186.34701679,0.00041095,120]
[340025594,1728334316981,-500.0,0.00041095,120]
[340025595,1728334316995,-677.66,0.00041095,120]
[340025596,1728334317272,-239.43,0.00041096,30]
[340025597,1728334317283,-180.2590163,0.00041096,2]
[340025598,1728334317293,-159.534834,0.00041139,2]
[340025599,1728334317307,-1543.83623271,0.000413,11]
[340025600,1728334317317,-1557.94,0.00041369,120]
[340025601,1728334317328,-500.0,0.00041369,120]
[340025602,1728334317341,-500.0,0.00041369,120]
[340025603,1728334317352,-878.3,0.00041369,120]
[340025604,1728334317364,-545.39,0.00041369,120]
[340025605,1728334317374,-603.96,0.00041369,120]
[340025606,1728334317385,-500.0,0.00041369,120]
[340025607,1728334317396,-500.0,0.00041369,90]
[340025608,1728334317408,-500.0,0.00041369,120]
[340025609,1728334317420,-800.19,0.00041369,120]
[340025610,1728334317432,-751.04,0.00041369,120]
[340025611,1728334317442,-500.0,0.00041369,7]
[340025612,1728334317452,-500.0,0.00041369,120]
[340025613,1728334317466,-500.0,0.00041369,120]
[340025614,1728334317476,-841.21,0.00041369,120]
[340025615,1728334317485,-500.0,0.00041369,120]
[340025616,1728334317495,-500.0,0.00041369,120]
[340025617,1728334317505,-500.0,0.00041369,120]
[340025618,1728334317515,-500.0,0.00041369,120]
[340025619,1728334317526,-612.78,0.00041369,120]
[340025620,1728334317537,-500.0,0.00041369,120]
[340025621,1728334317548,-259.81358066,0.00041369,120]
[340025622,1728334317560,-589.28,0.00041369,120]
[340025623,1728334317571,-500.0,0.00041369,120]
[340025624,1728334317583,-557.3,0.00041369,120]
[340025625,1728334317594,-500.0,0.00041369,120]
[340025626,1728334317604,-500.0,0.00041369,120]
[340025627,1728334317616,-500.0,0.00041369,120]
[340025628,1728334317627,-500.0,0.00041369,120]
[340025629,1728334317640,-500.0,0.00041369,120]
[340025630,1728334317650,-949.88,0.00041369,120]
[340025631,1728334317662,-660.6,0.00041369,120]
[340025632,1728334317672,-500.0,0.00041369,120]
[340025633,1728334317683,-754.75,0.00041369,120]
[340025634,1728334317695,-818.47,0.00041369,120]
[340025635,1728334317707,-550.91,0.00041369,120]
[340025636,1728334317719,-500.0,0.00041369,120]
[340025637,1728334317728,-625.1,0.00041369,120]
[340025638,1728334317738,-914.39,0.00041369,120]
[340025639,1728334317748,-500.0,0.00041369,120]
[340025640,1728334317760,-500.0,0.00041369,120]
[340025641,1728334317770,-500.0,0.00041369,120]
[340025642,1728334317781,-500.0,0.00041369,120]
[340025643,1728334317792,-500.0,0.00041369,120]
[340025644,1728334317804,-500.0,0.00041369,120]
[340025645,1728334317815,-500.0,0.00041369,120]
[340025646,1728334317826,-500.0,0.00041369,120]
[340025647,1728334317838,-500.0,0.00041369,120]
[340025648,1728334317849,-1047.98,0.00041369,120]
[340025649,1728334317861,-500.0,0.00041369,120]
[340025650,1728334317872,-683.38,0.00041369,120]
[340025651,1728334317884,-500.0,0.00041369,120]
[340025652,1728334317895,-1235.61,0.00041369,120]
[340025653,1728334317907,-1137.42,0.00041369,120]
[340025654,1728334317918,-494.0444635,0.00041369,120]
[340025655,1728334317928,-500.0,0.00041369,120]
[340025656,1728334317938,-500.0,0.00041369,120]
[340025657,1728334317948,-500.0,0.00041369,120]
[340025658,1728334317960,-575.41,0.00041369,120]
[340025659,1728334317973,-325.01036813,0.00041369,120]
[340025660,1728334317982,-500.0,0.00041369,120]
[340025661,1728334317993,-500.0,0.00041369,120]
[340025662,1728334318002,-800.54,0.00041369,120]
[340025663,1728334318012,-500.0,0.00041369,120]
[340025664,1728334318022,-709.12,0.00041369,120]
[340025665,1728334318031,-711.22,0.00041369,120]
[340025666,1728334318041,-500.0,0.00041369,120]
[340025667,1728334318050,-550.77,0.00041369,120]
[340025668,1728334318062,-500.0,0.00041369,120]
[340025669,1728334318074,-744.73,0.00041369,120]
[340025670,1728334318084,-500.0,0.00041369,120]
[340025671,1728334318096,-750.18,0.00041369,120]
[340025672,1728334318110,-500.0,0.00041369,120]
[340025673,1728334318123,-271.96959838,0.00041369,120]
[340025674,1728334318133,-607.18,0.00041369,120]
[340025675,1728334318144,-1202.82,0.00041369,120]
[340025676,1728334318155,-500.0,0.00041369,120]
[340025677,1728334318167,-1170.58,0.00041369,120]
[340025678,1728334318176,-500.0,0.00041369,120]
[340025679,1728334318185,-500.0,0.00041369,120]
[340025680,1728334318204,-637.28,0.00041369,120]
[340025681,1728334318217,-500.0,0.00041369,120]
[340025682,1728334318227,-500.0,0.00041369,120]
[340025683,1728334318237,-1008.72,0.00041369,120]
[340025684,1728334318247,-500.0,0.00041369,120]
[340025685,1728334318257,-576.24,0.00041369,120]
[340025686,1728334318271,-787.72,0.00041369,120]
[340025687,1728334318283,-500.0,0.00041369,120]
[340025688,1728334318294,-687.3,0.00041369,120]
[340025689,1728334318303,-500.0,0.00041369,120]
[340025690,1728334318316,-917.09,0.00041369,120]
[340025691,1728334318327,-162.06420814,0.00041369,120]
[340025692,1728334318337,-495.38149796,0.00041369,120]
[340025693,1728334318350,-1008.32,0.00041369,120]
[340025694,1728334318362,-1051.57,0.00041369,120]
[340025695,1728334318372,-500.0,0.00041369,120]
[340025696,1728334318383,-677.92,0.00041369,120]
[340025697,1728334318395,-500.0,0.00041369,2]
[340025698,1728334318405,-500.0,0.00041369,120]
[340025699,1728334318416,-529.97,0.00041369,120]
[340025700,1728334318425,-1141.57,0.00041369,120]
[340025701,1728334318435,-954.06,0.00041369,120]
[340025702,1728334318445,-865.56,0.00041369,120]
[340025703,1728334318455,-818.05,0.00041369,120]
[340025704,1728334318467,-500.0,0.00041369,120]
[340025705,1728334318478,-647.55,0.00041369,120]
[340025706,1728334318488,-504.35,0.00041369,120]
[340025707,1728334318500,-500.0,0.00041369,120]
[340025708,1728334318511,-851.04,0.00041369,120]
[340025709,1728334318521,-500.0,0.00041369,120]
[340025710,1728334318532,-523.84,0.00041369,120]
[340025711,1728334318543,-757.96,0.00041369,30]
[340025712,1728334318554,-567.79394546,0.00041369,120]
[340025713,1728334318566,-563.6,0.00041369,120]
[340025714,1728334318577,-555.29,0.00041369,120]
[340025715,1728334318588,-500.0,0.00041369,120]
[340025716,1728334318600,-500.0,0.00041369,120]
[340025717,1728334318612,-500.0,0.00041369,120]
[340025718,1728334318624,-389.11516702,0.00041369,120]
[340025719,1728334318634,-500.0,0.00041369,120]
[340025720,1728334318646,-276.79926815,0.00041369,120]
[340025721,1728334318656,-500.0,0.00041369,120]
[340025722,1728334318667,-743.56,0.00041369,120]
[340025723,1728334318680,-754.92,0.00041369,120]
[340025724,1728334318690,-1365.58,0.00041369,120]
[340025725,1728334318702,-465.74248176,0.00041369,120]
[340025726,1728334318713,-500.0,0.00041369,120]
[340025727,1728334318724,-623.42,0.00041369,120]
[340025728,1728334318738,-589.61907582,0.00041369,120]
[340025729,1728334318748,-861.29,0.00041369,120]
[340025730,1728334318758,-573.92,0.00041369,120]
[340025731,1728334318767,-555.73,0.00041369,120]
[340025732,1728334318778,-917.57,0.00041369,120]
[340025733,1728334318788,-500.0,0.00041369,120]
[340025734,1728334318797,-500.0,0.00041369,120]
[340025735,1728334318807,-544.85,0.00041369,120]
[340025736,1728334318816,-500.0,0.00041369,120]
[340025737,1728334318825,-571.4,0.00041369,60]
[340025738,1728334318835,-500.0,0.00041369,120]
[340025739,1728334318845,-719.55,0.00041369,120]
[340025740,1728334318854,-640.61,0.00041369,120]
[340025741,1728334318863,-500.0,0.00041369,120]
[340025742,1728334318873,-918.63,0.00041369,120]
[340025743,1728334318882,-812.73,0.00041369,120]
[340025744,1728334318891,-500.0,0.00041369,120]
[340025745,1728334318901,-500.0,0.00041369,120]
[340025746,1728334318910,-502.3,0.00041369,120]
[340025747,1728334318919,-500.0,0.00041369,120]
[340025748,1728334318929,-708.61,0.00041369,120]
[340025749,1728334318938,-537.44,0.00041369,120]
[340025750,1728334318948,-500.0,0.00041369,120]
[340025751,1728334318958,-610.21,0.00041369,120]
[340025752,1728334318970,-554.6,0.00041369,120]
[340025753,1728334318980,-500.0,0.00041369,120]
[340025754,1728334318992,-500.0,0.00041369,120]
[340025755,1728334319001,-500.0,0.00041369,120]
[340025756,1728334319012,-500.0,0.00041369,120]
[340025757,1728334319021,-500.0,0.00041369,120]
[340025758,1728334319032,-760.72,0.00041369,120]
[340025759,1728334319042,-500.0,0.00041369,120]
[340025760,1728334319053,-308.61699304,0.00041369,120]
[340025761,1728334319064,-505.93,0.00041369,120]
[340025762,1728334319074,-500.0,0.00041369,120]
[340025763,1728334319084,-579.67,0.00041369,120]
[340025764,1728334319094,-500.0,0.00041369,120]
[340025765,1728334319105,-500.0,0.00041369,120]
[340025766,1728334319118,-500.0,0.00041369,120]
[340025767,1728334319129,-909.57,0.00041369,120]
[340025768,1728334319141,-699.58,0.00041369,120]
[340025769,1728334319153,-778.22,0.00041369,120]
[340025770,1728334319164,-1176.62,0.00041369,120]
[340025771,1728334319177,-538.25,0.00041369,120]
[340025772,1728334319189,-500.0,0.00041369,120]
[340025773,1728334319201,-628.45,0.00041369,120]
[340025774,1728334319212,-557.23081917,0.00041369,120]
[340025775,1728334319223,-799.02,0.00041369,120]
[340025776,1728334319233,-1344.11,0.00041369,21]
[340025777,1728334319242,-500.0,0.00041369,120]
[340025778,1728334319251,-500.0,0.00041369,120]
[340025779,1728334319260,-1176.49,0.00041369,120]
[340025780,1728334319270,-500.0,0.00041369,120]
[340025781,1728334319279,-538.89,0.00041369,120]
[340025782,1728334319289,-500.0,0.00041369,120]
[340025783,1728334319298,-500.0,0.00041369,120]
[340025784,1728334319308,-603.48104801,0.00041369,120]
[340025785,1728334319317,-2556.51,0.00041369,120]
[340025786,1728334319327,-500.0,0.00041369,120]
[340025787,1728334319336,-500.0,0.00041369,120]
[340025788,1728334319365,-686.35,0.00041369,120]
[340025789,1728334319382,-500.0,0.00041369,120]
[340025790,1728334319397,-1127.5,0.00041369,120]
[340025791,1728334319413,-336.73,0.00041369,7]
[340025792,1728334319429,-618.33,0.00041369,120]
[340025793,1728334319446,-557.71,0.00041369,120]
[340025794,1728334319462,-554.61,0.00041369,120]
[340025795,1728334319479,-724.85,0.00041369,120]
[340025796,1728334319494,-607.42498565,0.00041369,120]
[340025797,1728334319509,-500.0,0.00041369,120]
[340025798,1728334319525,-500.0,0.00041369,120]
[340025799,1728334319539,-500.0,0.00041369,120]
[340025800,1728334319552,-500.0,0.00041369,120]
[340025801,1728334319565,-500.0,0.00041369,120]
[340025802,1728334319579,-500.0,0.00041369,120]
[340025803,1728334319595,-1000.0,0.00041369,120]
[340025804,1728334319611,-575.14,0.00041369,120]
[340025805,1728334319628,-500.0,0.00041369,120]
[340025806,1728334319643,-500.0,0.00041369,120]
[340025807,1728334319654,-500.0,0.00041369,120]
[340025808,1728334319665,-501.94,0.00041369,120]
[340025809,1728334319678,-500.0,0.00041369,120]
[340025810,1728334319693,-557.73,0.00041369,120]
[340025811,1728334319705,-819.33,0.00041369,120]
[340025812,1728334319719,-521.05,0.00041369,120]
[340025813,1728334319734,-1837.2,0.00041369,120]
[340025814,1728334319746,-1265.51,0.00041369,120]
[340025815,1728334319756,-518.1,0.00041369,120]
[340025816,1728334319773,-583.01,0.00041369,120]
[340025817,1728334319785,-500.0,0.00041369,120]
[340025818,1728334319797,-500.0,0.00041369,120]
[340025819,1728334319811,-500.0,0.00041369,120]
[340025820,1728334319826,-500.0,0.00041369,120]
[340025821,1728334319841,-281.40878554,0.00041369,120]
[340025822,1728334319854,-1208.8,0.00041369,120]
[340025823,1728334319868,-500.0,0.00041369,120]
[340025824,1728334319884,-500.0,0.00041369,120]
[340025825,1728334319900,-500.0,0.00041369,120]
[340025826,1728334319916,-618.94,0.00041369,120]
[340025827,1728334319928,-500.0,0.00041369,120]
[340025828,1728334319941,-500.0,0.00041369,120]
[340025829,1728334319956,-500.0,0.00041369,120]
[340025830,1728334319969,-718.42,0.00041369,120]
[340025831,1728334319982,-705.43,0.00041369,120]
[340025832,1728334319997,-500.0,0.00041369,120]
[340025833,1728334320010,-512.16,0.00041369,7]
[340025834,1728334320024,-1000.59,0.00041369,120]
[340025835,1728334320037,-500.0,0.00041369,120]
[340025836,1728334320049,-500.0,0.00041369,120]
[340025837,1728334320065,-2499.96,0.00041369,120]
[340025838,1728334320091,-500.0,0.00041369,120]
[340025839,1728334320105,-550.18,0.00041369,120]
[340025840,1728334320120,-615.51,0.00041369,120]
[340025841,1728334320135,-500.0,0.00041369,120]
[340025842,1728334320150,-500.0,0.00041369,120]
[340025843,1728334320166,-824.07,0.00041369,120]
[340025844,1728334320180,-1097.32,0.00041369,120]
[340025845,1728334320192,-500.0,0.00041369,120]
[340025846,1728334320205,-500.0,0.00041369,120]
[340025847,1728334320217,-500.0,0.00041369,120]
[340025848,1728334320230,-516.16,0.00041369,120]
[340025849,1728334320243,-500.0,0.00041369,120]
[340025850,1728334320255,-500.0,0.00041369,120]
[340025851,1728334320267,-514.48,0.00041369,120]
[340025852,1728334320279,-500.0,0.00041369,120]
[340025853,1728334320292,-500.0,0.00041369,120]
[340025854,1728334320303,-584.54,0.00041369,120]
[340025855,1728334320316,-500.0,0.00041369,120]
[340025856,1728334320329,-502.32,0.00041369,120]
[340025857,1728334320342,-500.0,0.00041369,120]
[340025858,1728334320356,-245.82687471,0.00041369,120]
[340025859,1728334320370,-500.0,0.00041369,120]
[340025860,1728334320384,-200.0,0.00041369,120]
[340025861,1728334320398,-659.67,0.00041369,30]
[340025862,1728334320411,-843.64,0.00041369,120]
[340025863,1728334320425,-500.0,0.00041369,120]
[340025864,1728334320438,-826.06,0.00041369,120]
[340025865,1728334320452,-844.53,0.00041369,120]
[340025866,1728334320466,-500.0,0.00041369,120]
[340025867,1728334320480,-500.0,0.00041369,120]
[340025868,1728334320493,-500.0,0.00041369,120]
[340025869,1728334320504,-500.0,0.00041369,120]
[340025870,1728334320517,-863.29,0.00041369,120]
[340025871,1728334320530,-714.69,0.00041369,120]
[340025872,1728334320543,-500.0,0.00041369,120]
[340025873,1728334320555,-500.0,0.00041369,120]
[340025874,1728334320569,-500.0,0.00041369,120]
[340025875,1728334320583,-500.0,0.00041369,120]
[340025876,1728334320595,-537.33,0.00041369,120]
[340025877,1728334320609,-500.0,0.00041369,120]
[340025878,1728334320621,-611.81,0.00041369,120]
[340025879,1728334320633,-500.0,0.00041369,120]
[340025880,1728334320645,-500.0,0.00041369,120]
[340025881,1728334320659,-679.62,0.00041369,120]
[340025882,1728334320671,-500.0,0.00041369,120]
[340025883,1728334320685,-769.77,0.00041369,120]
[340025884,1728334320697,-500.0,0.00041369,120]
[340025885,1728334320711,-944.22,0.00041369,120]
[340025886,1728334320724,-500.0,0.00041369,120]
[340025887,1728334320736,-514.42,0.00041369,120]
[340025888,1728334320748,-500.0,0.00041369,120]
[340025889,1728334320760,-677.66,0.00041369,120]
[340025890,1728334320772,-3000.0,0.00041424,60]
[340025891,1728334320786,-152.0,0.00041607,31]
[340025892,1728334320800,-1557.94,0.00041643,120]
[340025893,1728334320813,-500.0,0.00041643,120]
[340025894,1728334320825,-500.0,0.00041643,120]
[340025895,1728334320837,-878.3,0.00041643,120]
[340025896,1728334320850,-545.39,0.00041643,120]
[340025897,1728334320862,-603.96,0.00041643,120]
[340025898,1728334320875,-500.0,0.00041643,120]
[340025899,1728334320888,-500.0,0.00041643,90]
[340025900,1728334320900,-500.0,0.00041643,120]
[340025901,1728334320913,-800.19,0.00041643,120]
[340025902,1728334320926,-751.04,0.00041643,120]
[340025903,1728334320937,-500.0,0.00041643,7]
[340025904,1728334320951,-500.0,0.00041643,120]
[340025905,1728334320963,-500.0,0.00041643,120]
[340025906,1728334320980,-841.21,0.00041643,120]
[340025907,1728334320993,-500.0,0.00041643,120]
[340025908,1728334321006,-500.0,0.00041643,120]
[340025909,1728334321019,-568.27633635,0.00041643,120]
[340025910,1728334321033,-500.0,0.00041643,120]
[340025911,1728334321047,-612.78,0.00041643,120]
[340025912,1728334321060,-500.0,0.00041643,120]
[340025913,1728334321073,-589.28,0.00041643,120]
[340025914,1728334321085,-500.0,0.00041643,120]
[340025915,1728334321099,-557.3,0.00041643,120]
[340025916,1728334321113,-500.0,0.00041643,120]
[340025917,1728334321129,-500.0,0.00041643,120]
[340025918,1728334321142,-500.0,0.00041643,120]
[340025919,1728334321155,-252.00099157,0.00041643,120]
[340025920,1728334321170,-500.0,0.00041643,120]
[340025921,1728334321182,-949.88,0.00041643,120]
[340025922,1728334321196,-660.6,0.00041643,120]
[340025923,1728334321209,-500.0,0.00041643,120]
[340025924,1728334321222,-754.75,0.00041643,120]
[340025925,1728334321233,-818.47,0.00041643,120]
[340025926,1728334321246,-550.91,0.00041643,120]
[340025927,1728334321260,-500.0,0.00041643,120]
[340025928,1728334321273,-625.1,0.00041643,120]